[Event "Croatian 1A League 2022"]
[Site "Porec"]
[Date "2022.09.30"]
[Round "7.7"]
[White "Kozul, Zdenko"]
[Black "Vavulin, Maxim"]
[Result "0-1"]
[ECO "A62"]
[WhiteElo "2549"]
[BlackElo "2550"]
[Annotator "TA"]
[PlyCount "136"]
[EventDate "2022.09.24"]
[EventType "team-tourn"]
[EventCountry "CRO"]
[SourceTitle "playchess.com"]
[Source "ChessBase"]
[SourceQuality "1"]
[TimeControl "40/5400+30:1800+30"]

{[%evp 20,136,31,24,29,47,44,53,62,47,50,43,68,72,85,56,51,0,0,-88,-88,-95,-84,-81,-42,-36,-20,-35,-43,-14,-23,-53,-29,-43,0,-24,-11,-420,-397,-378,-31,-35,-85,-87,-6,-8,-8,-48,0,0,0,-54,-58,-73,-29,-85,0,0,0,-94,0,-60,0,-1,0,-6,0,-23,-37,-80,-60,-43,-64,-54,-62,-227,-203,-239,-103,-263,-265,-350,-220,-222,-216,-300,-278,-288,-294,-6118,-6103,-12829,-12829,-12831,-12831,-12831,-12831,-12830,-12830,-12828,-12829,-12837,-12833,-12837,-12835,-12835,-12835,-12839,-12839,-12840,-12840,-12841,-12841,-12841,-12842,-12843,-12844,-12844,-12845]} 1. d4 {[%emt 0:00:32]} Nf6 {[%emt 0:00:23]} 2. c4 {[%emt 0:00:12]} e6 {[%emt 0:00:07]} 3. g3 {[%emt 0:00:56]} c5 {[%emt 0:00:26]} 4. d5 {[%emt 0:00:17]} exd5 {[%emt 0:00:06]} 5. cxd5 {[%emt 0:00:11]} d6 {[%emt 0:00:06]} 6. Nc3 {[%emt 0:00:35]} g6 {[%emt 0:00:10]} 7. Bg2 {[%emt 0:00:09]} Bg7 {[%emt 0:00:07]} 8. Nf3 {[%emt 0:00:09]} O-O {[%emt 0:00:07]} 9. O-O {[%emt 0:00:08]} Na6 {[%emt 0:03:28]} 10. Re1 {[%emt 0:03:12]} Nc7 {[%emt 0:02:36]} 11. a4 {[%emt 0:00:18]} (11. e4 {looks sharper.} Bg4 12. Bf4 Nh5 13. Be3) 11... a6 {[%emt 0:00:44] A62: Modern Benoni: Fianchetto Variation without early ...Nbd7.} 12. h3 {[%emt 0:07:29][%cal Bh2h3,Bh3h4][%mdl 32]} Rb8 {[%emt 0:08:26]} 13. e4 {[%emt 0:00:58]} Nd7 {[%emt 0:09:21] Inhibits e5. White is slightly better.} 14. Bf4 {[%emt 0:04:36] [#]} Ne8 $146 {[%emt 0:01:14]} ({Predecessor:} 14... Ne5 15. Nxe5 dxe5 16. Be3 Qd6 17. a5 Bd7 18. Qc2 Rfc8 19. Rec1 Bf8 20. f4 f6 {1-0 (38) Blees,A (2400)-Carlier,B (2385) Rotterdam 1990}) 15. Bf1 {[%emt 0:03:07]} h6 {[%emt 0:11:40]} 16. h4 {[%emt 0:02:16]} Ndf6 {[%emt 0:07:59]} 17. e5 {[%emt 0:04:02]} Nh5 {[%emt 0:02:27]} 18. e6 {[%emt 0:02:07]} (18. Be3 $14) 18... Qe7 $1 $11 {[%emt 0:00:35]} (18... Nxf4 $2 19. e7 Qb6 20. exf8=B Kxf8 21. gxf4 $18) 19. Qd2 {[%emt 0:21:10]} (19. exf7+ $2 Qxf7 20. Ne2 Bxb2 $17) (19. Bd2 $11 {keeps the balance.}) 19... Nxf4 {[%emt 0:13:03]} 20. gxf4 {[%emt 0:01:07][%cal Oh4h5]} fxe6 {[%emt 0:08:48]} 21. dxe6 {[%emt 0:01:15] Nd5 is the strong threat.} Nc7 {[%emt 0:00:46]} (21... Bxe6 22. Bc4 Nc7 23. Rxe6 Nxe6 24. Re1 $14) 22. Bc4 {[%emt 0:06:41][%cal Bf1c4,Bc4d3,Bd3e4][%mdl 32]} Bxc3 {[%emt 0:06:20]} (22... Bxe6 23. Rxe6 Nxe6 24. Re1 $16) (22... Nxe6 23. Qe3 $14) 23. bxc3 {[%emt 0:03:38][%cal Oh4h5]} b5 {[%emt 0:00:09]} ({Don't play} 23... Bxe6 24. Rxe6 Nxe6 25. Re1 $16) (23... Nxe6 24. Re2 Rf6 25. Rae1 $16) 24. axb5 {[%emt 0:04:18]} axb5 {[%emt 0:04:44]} 25. Bd3 {[%emt 0:15:54]} Bb7 {[%emt 0:15:25]} (25... Nxe6 $5 {[%cal Re7f6]} 26. Bxg6 Qg7 27. Qxd6 Nxf4 $15) 26. Be4 {[%emt 0:00:16]} Qxe6 {[%emt 0:00:56]} (26... Nxe6 $2 27. Ra7 Rf6 28. Bd5 $18) 27. f5 {[%emt 0:00:13]} Qf6 {[%emt 0:00:14]} (27... gxf5 $2 28. Bxb7 Qg6+ 29. Kh2 $18) 28. Ra7 $2 {[%emt 0:02:06][%mdl 8192]} (28. Bxb7 $11 {and White has nothing to worry.} Rxb7 29. Qxh6) 28... Bxe4 $19 {[%emt 0:01:32]} 29. Rxe4 {[%emt 0:00:19]} Rf7 {[%emt 0:00:50]} (29... Qxf5 $19 30. Qe3 Rf7) 30. Rg4 $15 {[%emt 0:07:41]} Qxf5 {[%emt 0:00:12]} 31. Rg3 {[%emt 0:00:06] [#]} Kh7 {[%emt 0:01:00]} (31... Ne6 $1 $17 32. Rxf7 Kxf7 33. Qxh6 Ke7 34. Rxg6 Rf8) 32. Qxd6 {[%emt 0:01:32]} Rc8 {[%emt 0:00:17]} 33. Qc6 {[%emt 0:05:10][%cal Oh4h5]} Kg7 {[%emt 0:01:52]} (33... Rg7 $1 $15 {was preferrable.} 34. Nd2 {[#]} Rf8 $1) 34. Rb7 $11 {[%emt 0:02:06]} Kh7 {[%emt 0:00:27]} 35. Kh2 {[%emt 0:02:37]} (35. Ra7 $11) 35... Rg7 $1 $15 {[%emt 0:00:33]} 36. Kg1 {[%emt 0:00:16]} Qd5 {[%emt 0:00:43]} 37. Qb6 {[%emt 0:00:24]} (37. Rb6 $11) 37... Qd1+ {[%emt 0:00:25]} (37... Qe4 $17 38. Nd2 Qf5) 38. Kg2 $11 {[%emt 0:00:47]} Qd5 {[%emt 0:00:30]} (38... Qd7 $11) 39. Kg1 $1 $17 {[%emt 0:00:30]} Qh5 {[%emt 0:00:37]} ({Better is} 39... c4 $17) 40. Qf6 {[%emt 0:00:00]} (40. Qd6 $11) 40... Qf5 {[%emt 0:00:00]} (40... Re8 $15) 41. Qe5 {[%emt 0:14:44]} Rf7 {[%emt 0:12:14]} 42. Qd6 {[%emt 0:02:14]} Rd7 {[%emt 0:02:00] Really sharp!} 43. Qc6 {[%emt 0:00:49][%cal Oh4h5]} Rg7 $36 {[%emt 0:01:28][%mdl 2048] Black has good play.} 44. Qd6 {[%emt 0:04:14]} Ne8 {[%emt 0:10:39][%csl LRb7,LRd6][%cal Bc7e8,Be8g7,Bg7f5][%mdl 32]} 45. Rxg7+ {[%emt 0:00:32]} Nxg7 {[%emt 0:00:03]} 46. Ne5 {[%emt 0:01:57]} Re8 {[%emt 0:00:33]} 47. Ng4 {[%emt 0:04:13] Black continues to play with concentration.} ({Wrong is} 47. Qxg6+ $2 Qxg6 48. Nxg6 Nf5 $19) ({Only move:} 47. Re3 $1 $15) 47... Rf8 {[%emt 0:03:38] Strongly threatening ...h5.} 48. Qd2 {[%emt 0:02:32]} Qf4 {[%emt 0:00:41]} (48... h5 $19 {is more deadly.} 49. Ne3 Qb1+ 50. Nf1 Re8) 49. Ne3 {[%emt 0:00:25]} (49. Qxf4 $17 Rxf4 50. Ne5) 49... Qxh4 {[%emt 0:01:09]} 50. Ng4 {[%emt 0:03:55]} Nf5 {[%emt 0:02:08] Prevents Qd6.} 51. Qd7+ {[%emt 0:00:04]} Qe7 {[%emt 0:00:30]} 52. Qxe7+ {[%emt 0:00:10]} Nxe7 $19 {[%emt 0:00:02][%mdl 4096] Endgame KRN-KRN} 53. Rd3 {[%emt 0:00:07]} h5 {[%emt 0:01:09][%cal Bh6h5,Bh5g4][%mdl 32]} 54. Rd7 $2 {[%emt 0:01:24]} (54. Ne5 Kg7 55. Rd7) 54... hxg4 {[%emt 0:01:09] Black is clearly winning.} 55. Rxe7+ {[%emt 0:00:05] KR-KR} Kh6 {[%emt 0:00:02]} 56. Rc7 {[%emt 0:00:12]} c4 {[%emt 0:00:35]} ({Inferior is} 56... b4 57. Rxc5 bxc3 58. Rxc3 $11) 57. Rb7 {[%emt 0:00:17]} Rf5 {[%emt 0:00:17]} 58. Kg2 {[%emt 0:00:11]} Kg5 {[%emt 0:00:19]} 59. Rb6 {[%emt 0:00:07]} Rd5 {[%emt 0:00:22]} 60. Kf1 {[%emt 0:02:02]} Kf5 {[%emt 0:01:15]} 61. Rb8 {[%emt 0:00:41]} Kf4 {[%emt 0:00:30]} 62. Rb6 {[%emt 0:00:33]} g5 {[%emt 0:00:17]} 63. Kg2 {[%emt 0:00:39]} Ke4 {[%emt 0:00:29]} 64. Re6+ {[%emt 0:00:29]} Kd3 {[%emt 0:00:10]} 65. Re3+ {[%emt 0:00:19]} Kd2 {[%emt 0:00:18]} 66. Kf1 {[%emt 0:00:09]} b4 {[%emt 0:00:52]} 67. cxb4 {[%emt 0:00:11]} c3 {[%emt 0:00:03]} 68. Re2+ {[%emt 0:00:23]} Kc1 {[%emt 0:00:06] Weighted Error Value: White=0.53/Black=0.29 (precise)} 0-1

[Event "Croatian 1A League 2022"]
[Site "Porec"]
[Date "2022.09.30"]
[Round "7.8"]
[White "Fercec, Nenad"]
[Black "Stevic, Hrvoje"]
[Result "1/2-1/2"]
[ECO "C60"]
[WhiteElo "2403"]
[BlackElo "2565"]
[Annotator "TA"]
[PlyCount "67"]
[EventDate "2022.09.24"]
[EventType "team-tourn"]
[EventCountry "CRO"]
[SourceTitle "playchess.com"]
[Source "ChessBase"]
[SourceQuality "1"]
[TimeControl "40/5400+30:1800+30"]

{[%evp 15,67,20,27,7,25,9,31,2,0,0,14,0,15,9,29,26,100,53,40,57,90,89,85,100,127,104,201,210,221,221,225,214,235,239,220,186,175,168,176,136,133,136,241,245,226,160,160,168,160,99,94,15,65,15]} 1. e4 {[%emt 0:00:07]} e5 {[%emt 0:02:38]} 2. Nf3 {[%emt 0:00:07]} Nc6 {[%emt 0:00:08]} 3. Bb5 {[%emt 0:00:11]} g6 {[%emt 0:00:16]} 4. O-O {[%emt 0:00:38]} Bg7 {[%emt 0:00:14]} 5. c3 {[%emt 0:00:11]} a6 {[%emt 0:00:11]} 6. Ba4 {[%emt 0:00:13]} b5 {[%emt 0:00:18]} 7. Bc2 {[%emt 0:00:27]} d6 $1 {[%emt 0:00:52] 7...d6 scores better than 7...Nge7.} 8. h3 {[%emt 0:03:09]} Nf6 {[%emt 0:00:25]} 9. d4 {[%emt 0:00:20] C60: Ruy Lopez: Unusual Black 3rd moves and 3...g6.} exd4 {[%emt 0:00:26]} 10. cxd4 {[%emt 0:00:44]} O-O {[%emt 0:00:09]} 11. Nc3 {[%emt 0:00:35]} Bb7 {[%emt 0:03:36]} 12. Bg5 {[%emt 0:18:37][%cal Bc1g5,Bg5h4,Bh4g3][%mdl 32]} h6 {[%emt 0:01:07]} 13. Bh4 {[%emt 0:01:38]} Re8 {[%emt 0:26:38]} 14. Re1 {[%emt 0:03:41]} g5 {[%emt 0:03:20]} 15. Bg3 {[%emt 0:00:39]} b4 {[%emt 0:00:10] [#]} (15... Na5 $11 {remains equal.}) 16. Nb1 $146 {[%emt 0:01:15]} (16. Na4 $16) ({Predecessor:} 16. Na4 Ne7 17. a3 a5 18. d5 Ng6 19. Nd4 Nxd5 20. Nf5 Ndf4 21. Nxg7 Kxg7 22. axb4 axb4 {0-1 (64) Sevian,S (2647)-Dreev,A (2670) Chess.com INT 2019}) 16... Nh5 {[%emt 0:16:53]} 17. Bh2 {[%emt 0:01:10]} Nf4 {[%emt 0:00:03]} 18. Bxf4 {[%emt 0:01:08]} gxf4 {[%emt 0:01:14]} 19. Ba4 {[%emt 0:01:30]} Qf6 {[%emt 0:18:26][%cal Rc6d4]} 20. Nbd2 {[%emt 0:19:58][%cal Bb1d2,Bd2e4,Be4c5][%mdl 32]} Re7 {[%emt 0:03:28] [#]} (20... Nxd4 $16 21. Bxe8 Rxe8) 21. e5 $1 $18 {[%emt 0:02:22]} dxe5 {[%emt 0:07:21]} 22. Ne4 {[%emt 0:00:11]} Qf5 {[%emt 0:00:28][%cal Rc6d4]} 23. Nc5 {[%emt 0:04:02] Pair of Knights!} Na5 {[%emt 0:04:52]} 24. Nxb7 {[%emt 0:01:25]} (24. Nxe5 $6 Bxe5 25. dxe5 Rxe5 26. Rxe5 Qxe5 $16) (24. dxe5 $6 Bxf3 25. Qxf3 c6) 24... Nxb7 {[%emt 0:00:03]} 25. Bc6 {[%emt 0:01:36]} (25. Nxe5 Bxe5 26. dxe5 Rxe5 $14) 25... Rb8 {[%emt 0:01:35]} 26. dxe5 {[%emt 0:01:33] Black must now prevent Nd4.} Nd8 {[%emt 0:01:58]} 27. Be4 {[%emt 0:01:36]} Qd7 {[%emt 0:00:03]} 28. Qc1 {[%emt 0:14:14]} Rb5 {[%emt 0:05:44]} (28... Ne6 $16 {might work better.} 29. Bf5 Rb5 30. Bxe6 Rxe6) 29. Qxf4 {[%emt 0:00:19]} Ne6 {[%emt 0:00:02]} 30. Qh4 {[%emt 0:01:48] Rad1 is the strong threat.} Ng5 {[%emt 0:01:10] [#]} 31. Rad1 $1 {[%emt 0:04:23]} ({Resist} 31. Nxg5 $6 hxg5 32. Bh7+ (32. Qxg5 Rbxe5 33. Qh4 Kf8 $14) 32... Kf8 33. Qxg5 Rbxe5 34. Rxe5 Rxe5 $14) 31... Qe8 {[%emt 0:00:03]} 32. Nxg5 {[%emt 0:03:04] White is more active.} (32. Rd3 $142) 32... hxg5 $16 {[%emt 0:00:00]} 33. Qh7+ {[%emt 0:00:10]} ({Avoid the trap} 33. Qxg5 $2 Rbxe5 34. Bh7+ Kxh7 $19) 33... Kf8 {[%emt 0:00:03]} 34. Bf3 {[%emt 0:03:02] Weighted Error Value: White=0.17 (very precise) /Black=0.21 (precise)} (34. Bd5 $1 $14) 1/2-1/2

[Event "Croatian 1A League 2022"]
[Site "Porec"]
[Date "2022.09.30"]
[Round "7.9"]
[White "Palac, Mladen"]
[Black "Krsnik Cohar, Ivan Vihor"]
[Result "1/2-1/2"]
[ECO "A80"]
[WhiteElo "2516"]
[BlackElo "2296"]
[Annotator "TA"]
[PlyCount "128"]
[EventDate "2022.09.24"]
[EventType "team-tourn"]
[EventCountry "CRO"]
[SourceTitle "playchess.com"]
[Source "ChessBase"]
[SourceQuality "1"]
[TimeControl "40/5400+30:1800+30"]

{[%evp 9,128,47,73,70,61,58,91,74,66,73,75,66,77,80,79,72,81,86,94,70,75,60,112,82,86,73,84,34,29,0,0,0,0,0,0,0,0,0,10,13,37,35,39,32,37,20,42,32,35,31,43,50,57,57,57,60,66,64,61,45,44,45,43,0,0,0,0,0,0,0,0,0,12,-2,0,0,0,0,0,0,0,0,0,-158,-159,-180,-159,-247,-205,-212,-8,-37,0,-8,-8,-8,-8,-8,-8,-8,0,-8,-8,-8,-8,-8,-8,-8,-8,-8,-8,-8,-8,-8,-8,-873,-8,-8,-8,-8,-8]} 1. d4 {[%emt 0:02:40]} f5 {[%emt 0:04:48]} 2. Bg5 {[%emt 0:01:03]} Nf6 {[%emt 0:00:52]} 3. Bxf6 {[%emt 0:00:07]} exf6 {[%emt 0:00:05]} 4. e3 {[%emt 0:00:04]} d5 {[%emt 0:05:05]} 5. c4 {[%emt 0:00:49]} dxc4 {[%emt 0:00:35]} 6. Bxc4 {[%emt 0:00:24] A80: Dutch Defence: Unusual White second moves.} Bd6 {[%emt 0:00:44]} 7. Nc3 {[%emt 0:01:17]} c6 {[%emt 0:01:17] [#]} 8. Qf3 $146 {[%emt 0:08:18] White is better.} ({Predecessor:} 8. Nge2 Nd7 9. Qc2 Nb6 10. Bd3 g6 11. h4 Be6 12. h5 Ke7 13. Kf1 Qd7 14. Re1 Nd5 15. a3 Rae8 16. e4 fxe4 17. Nxe4 {½-½ (17) Omorjan,D (2339)-Popchev,M (2200) Novi Sad 2022}) 8... Nd7 {[%emt 0:20:04]} 9. Qxf5 {[%emt 0:10:36] White is more active.} Ne5 {[%emt 0:00:18]} 10. Qh5+ {[%emt 0:00:02]} ({Don't go for} 10. Qe4 $2 f5 11. Qxe5+ Bxe5 12. dxe5 f4 13. exf4 Qd4 $19) 10... g6 {[%emt 0:00:08]} 11. Qe2 {[%emt 0:00:00]} Nxc4 {[%emt 0:00:07]} 12. Qxc4 {[%emt 0:00:03]} Qe7 {[%emt 0:00:05]} 13. Nf3 {[%emt 0:11:46]} Be6 {[%emt 0:03:59]} 14. Qa4 {[%emt 0:00:01]} O-O {[%emt 0:02:54]} 15. O-O {[%emt 0:00:34]} g5 {[%emt 0:00:51]} ({Black should try} 15... Bg4 $14) 16. Rfe1 {[%emt 0:13:05]} Qc7 {[%emt 0:03:30]} 17. d5 {[%emt 0:15:26]} cxd5 {[%emt 0:05:45]} 18. Nd4 {[%emt 0:01:01]} (18. Rad1 $16) 18... Bf7 $14 {[%emt 0:01:41]} 19. Ndb5 {[%emt 0:01:55]} Bxh2+ {[%emt 0:00:49] This bishop pair is nice.} 20. Kh1 $1 {[%emt 0:00:04]} Qb8 {[%emt 0:00:05]} 21. g3 {[%emt 0:01:45]} Bxg3 {[%emt 0:02:09]} 22. fxg3 {[%emt 0:00:04]} Qxg3 {[%emt 0:00:09]} 23. Qc2 {[%emt 0:00:01]} Rfe8 {[%emt 0:17:56]} 24. Qg2 {[%emt 0:10:10] Really sharp!} Qh4+ {[%emt 0:06:41]} 25. Qh2 {[%emt 0:02:46]} Qxh2+ {[%emt 0:00:03]} 26. Kxh2 {[%emt 0:00:02] aiming for Nc7.} Re5 {[%emt 0:00:07]} 27. Kg2 {[%emt 0:06:35]} a6 {[%emt 0:02:26]} 28. Nd4 {[%emt 0:00:05]} Rae8 {[%emt 0:00:21]} 29. Kf2 {[%emt 0:02:21]} h5 {[%emt 0:00:09]} 30. Nf3 {[%emt 0:03:14]} Rf5 {[%emt 0:03:17] Strongly threatening ...g4.} 31. Ne2 $1 {[%emt 0:00:05]} g4 {[%emt 0:06:38][%mdl 64] Pin} 32. Ned4 {[%emt 0:00:05]} Rxf3+ {[%emt 0:01:38]} 33. Nxf3 {[%emt 0:00:04]} gxf3 {[%emt 0:00:09]} 34. Kxf3 {[%emt 0:03:36][%mdl 4096] Endgame KRR-KRB} Be6 {[%emt 0:01:56]} 35. Rac1 {[%emt 0:00:22][%mdl 1024] White has compensation.} Re7 {[%emt 0:01:12] Inhibits Rc7.} 36. Rh1 {[%emt 0:05:04]} Bg4+ {[%emt 0:00:37]} 37. Kf2 {[%emt 0:00:04]} Kf7 {[%emt 0:00:23]} 38. Rc5 {[%emt 0:02:19]} d4 {[%emt 0:06:52]} 39. exd4 {[%emt 0:00:46]} Re2+ {[%emt 0:00:05]} 40. Kg3 {[%emt 0:00:00]} Rxb2 {[%emt 0:00:00]} 41. Re1 {[%emt 0:02:22]} Rd2 {[%emt 0:03:59]} 42. Rc7+ {[%emt 0:04:09]} Kg6 {[%emt 0:00:06]} 43. Rxb7 {[%emt 0:00:20]} Rd3+ {[%emt 0:00:19]} 44. Kf4 {[%emt 0:00:40]} Rxd4+ {[%emt 0:00:09]} 45. Re4 {[%emt 0:00:01]} Rd3 {[%emt 0:00:46][%csl Gg4][%cal Rd3f3]} 46. Ree7 $2 {[%emt 0:03:53]} (46. Rb3 $11 Rd5 47. Ra3) 46... Rf3+ $1 $17 {[%emt 0:01:32]} 47. Ke4 {[%emt 0:00:02] White threatens Rg7+ and mate.} Kg5 {[%emt 0:00:39]} 48. Rb3 {[%emt 0:11:25]} (48. Kd4 $17 {keeps fighting.}) 48... Rf2 $1 $19 {[%emt 0:01:37]} 49. Rg7+ {[%emt 0:01:19] [#]} Kh6 $2 {[%emt 0:00:06]} (49... Kh4 $1 $19 {Hoping for ...f5+.} 50. Rb1 Kg3) 50. Ra7 {[%emt 0:00:17]} Rxa2 {[%emt 0:00:24]} 51. Rb6 {[%emt 0:00:10][%csl LRa6,LRf6]} Rf2 {[%emt 0:01:12] White must now prevent ...Kg5.} 52. Rbxa6 {[%emt 0:01:45]} Kg5 {[%emt 0:00:45] And now ...f5+ would win.} 53. Ra2 {[%emt 0:00:45]} f5+ {[%emt 0:01:14]} 54. Ke5 {[%emt 0:00:35]} Rf3 {[%emt 0:16:29]} 55. R2a3 {[%emt 0:00:50] Against Re3+} Rxa3 {[%emt 0:04:25]} 56. Rxa3 $11 {[%emt 0:00:02] KR-KB} h4 {[%emt 0:00:08]} 57. Ra1 $1 {[%emt 0:09:47]} h3 {[%emt 0:03:10]} 58. Rh1 {[%emt 0:00:21]} f4 {[%emt 0:00:30]} 59. Rh2 {[%emt 0:01:40]} Bc8 {[%emt 0:03:36] Threatens to win with ...f3.} (59... Bf5 $5 60. Rf2 $8 Bg6 $11) 60. Rf2 {[%emt 0:00:11]} Bb7 {[%emt 0:00:08] ...Bg2 is the strong threat.} (60... Ba6 $5) 61. Rxf4 {[%emt 0:00:09]} h2 {[%emt 0:00:08]} 62. Rf8 $2 {[%emt 0:01:12][%mdl 8192] [#]} (62. Rf1 $11) 62... Bd5 $2 {[%emt 0:00:57]} 63. Rh8 {[%emt 0:00:04]} h1=Q {[%emt 0:00:03]} 64. Rxh1 {[%emt 0:00:07]} Bxh1 {Weighted Error Value: White=0.26 (precise) /Black=0.23 (precise)} 1/2-1/2

[Event "Croatian 1A League 2022"]
[Site "Porec"]
[Date "2022.09.30"]
[Round "7.10"]
[White "Franic, Milan"]
[Black "Petkov, Vladimir"]
[Result "1-0"]
[ECO "E46"]
[WhiteElo "2365"]
[BlackElo "2451"]
[Annotator "TA"]
[PlyCount "123"]
[EventDate "2022.09.24"]
[EventType "team-tourn"]
[EventCountry "CRO"]
[SourceTitle "playchess.com"]
[Source "ChessBase"]
[SourceQuality "1"]
[TimeControl "40/5400+30:1800+30"]

{[%evp 9,123,0,0,0,0,0,1,0,-7,-8,-1,-6,-12,-5,-6,-4,-14,-30,-21,-25,-5,-30,-34,-89,-61,-140,-32,-31,-34,-104,-104,-122,-136,-141,-134,-162,-140,-141,-146,-157,-138,-127,-131,-144,-122,-140,-140,-143,-124,-144,-112,-143,-127,-158,-136,-150,-152,-159,-143,-199,-194,-177,-192,-199,-192,-243,-243,-243,-186,-243,-243,-251,-227,-272,-270,-353,-359,-430,-414,-450,-468,-455,-456,-475,-468,-471,-468,-397,-327,-258,0,-69,-17,-16,-17,-12,17,17,11,14,15,13,26,8,10,4,282,284,875,902,1164,1147,29980,29978,5509,1593]} 1. d4 {[%emt 0:04:57]} Nf6 {[%emt 0:00:32]} 2. c4 {[%emt 0:00:06]} e6 {[%emt 0:00:16]} 3. Nc3 {[%emt 0:00:45]} Bb4 {[%emt 0:00:50]} 4. e3 {[%emt 0:00:06]} O-O {[%emt 0:00:49]} 5. Nge2 {[%emt 0:00:14]} c6 {[%emt 0:00:28]} 6. a3 {[%emt 0:02:14] E46: Nimzo-Indian: Rubinstein: 4 e3 0-0 5 Ne2 without early Bd3.} Ba5 {[%emt 0:00:10]} 7. Ng3 {[%emt 0:06:56]} d5 {[%emt 0:01:04]} 8. cxd5 {[%emt 0:02:58] The position is equal.} exd5 {[%emt 0:01:41]} 9. Bd3 {[%emt 0:00:05]} Re8 {[%emt 0:04:54]} 10. O-O {[%emt 0:00:42]} Nbd7 {[%emt 0:01:35]} 11. Bd2 {[%emt 0:06:45]} Bc7 {[%emt 0:02:16]} 12. Rc1 {[%emt 0:01:05]} Nf8 {[%emt 0:02:03][%cal Bd7f8,Bf8e6,Be6g5,Bg5e4,Be4d6,Bd6f5][%mdl 32] [#]} 13. b4 $146 {[%emt 0:00:19]} ({Predecessor:} 13. f3 g6 14. b4 a6 15. Qe1 Qd6 16. Qf2 h6 17. Rfe1 Ne6 18. Nf1 a5 19. Kh1 axb4 20. axb4 Bd7 21. Ra1 Qf8 22. Reb1 Rxa1 23. Rxa1 Ra8 {½-½ (23) Praveen Kumar,C (2143)-Baidetsky,V (2443) Schwarzach 2022}) 13... a6 {[%emt 0:20:07]} 14. Re1 {[%emt 0:04:43]} Ne6 {[%emt 0:02:02]} 15. Na4 {[%emt 0:15:45]} Ng5 {[%emt 0:10:06]} 16. Re2 {[%emt 0:06:56]} (16. f3 $15) 16... h5 {[%emt 0:08:34]} 17. Nf1 {[%emt 0:06:28]} (17. f4 $15 Nge4 18. Bxe4 dxe4 19. h3) 17... h4 {[%emt 0:13:11]} (17... Bg4 $1 $17 {[%cal Og5f3] Threatens to win with ...Nf3+!} 18. f3 Nxf3+ $1 19. gxf3 Bxf3) 18. f4 $15 {[%emt 0:04:47]} Nge4 {[%emt 0:00:44] ...Bg4 is the strong threat.} 19. Be1 {[%emt 0:00:37]} (19. h3 $1 $15) 19... h3 $17 {[%emt 0:06:21]} 20. Rb2 {[%emt 0:01:21]} hxg2 {[%emt 0:00:58]} 21. Kxg2 {[%emt 0:00:44]} Bg4 {[%emt 0:00:25]} 22. Be2 {[%emt 0:00:11]} Bxe2 {[%emt 0:01:50]} 23. Qxe2 {[%emt 0:00:20]} Nd6 {[%emt 0:01:10]} 24. Qf3 {[%emt 0:02:18]} Nf5 {[%emt 0:01:48]} 25. Nc5 {[%emt 0:00:35]} Qc8 {[%emt 0:02:04]} 26. Kh1 {[%emt 0:00:37]} g6 {[%emt 0:01:09]} 27. a4 {[%emt 0:07:26]} Bd6 {[%emt 0:00:35]} 28. Rbc2 {[%emt 0:00:34]} Re7 {[%emt 0:00:52]} 29. Nd3 {[%emt 0:00:15]} Qe6 {[%emt 0:01:02]} 30. Ne5 {[%emt 0:00:27]} Kg7 {[%emt 0:00:14]} 31. Rb1 {[%emt 0:04:37]} Ne4 {[%emt 0:01:01]} 32. Rg2 {[%emt 0:00:28]} Rh8 {[%emt 0:02:59]} (32... Bxe5 33. fxe5 Rf8 34. Ng3 Nfxg3+ 35. Bxg3 $17) 33. Rbb2 {[%emt 0:02:38]} Rh6 {[%emt 0:01:08]} 34. Ng4 {[%emt 0:00:17]} (34. Nd3 $17) 34... Rh7 $19 {[%emt 0:00:22]} 35. Ne5 {[%emt 0:03:05]} Re8 {[%emt 0:02:12]} 36. Rg1 {[%emt 0:02:42]} Reh8 {[%emt 0:01:04]} (36... Bxe5 37. fxe5 Reh8 38. Ng3 Nfxg3+ 39. Bxg3) 37. Rbg2 {[%emt 0:00:14]} (37. Rgg2 $142) 37... Rh6 {[%emt 0:00:44]} 38. Qe2 {[%emt 0:00:45]} Qe7 {[%emt 0:03:23]} 39. Qb2 {[%emt 0:00:21]} (39. b5 {was necessary.}) 39... Rh3 {[%emt 0:00:38]} 40. b5 {[%emt 0:00:00]} axb5 {[%emt 0:00:00]} (40... Nxe3 41. Nxe3 Rxe3 42. bxc6 bxc6 43. Qc1 $17) 41. axb5 {[%emt 0:04:05]} Bxe5 {[%emt 0:01:02]} ({Inferior is} 41... Nxe3 42. Nxe3 Rxe3 43. bxc6 bxc6 44. Qc1 $17) 42. dxe5 {[%emt 0:00:06]} Qe6 {[%emt 0:00:13] Hoping for ...d4.} (42... Nxe3 43. Nxe3 Rxe3 44. bxc6 bxc6 45. f5 $14) 43. bxc6 {[%emt 0:00:08]} bxc6 {[%emt 0:00:04]} 44. Qb7 {[%emt 0:02:12] And now Rxg6+ would win.} R8h6 {[%emt 0:04:22] White must now prevent ...d4.} 45. Re2 {[%emt 0:00:33]} c5 {[%emt 0:13:30]} 46. Rgg2 {[%emt 0:00:33]} Rf3 {[%emt 0:00:42]} 47. Kg1 {[%emt 0:00:38]} Rhh3 {[%emt 0:00:31]} 48. Bf2 {[%emt 0:00:40]} c4 {[%emt 0:02:10]} 49. Ra2 {[%emt 0:01:44]} Qe7 $2 {[%emt 0:12:00]} ({Worse is} 49... Nxf2 50. Ra6 Qe7 51. Qxe7 Nxe7 52. Rxf2 $17) ({Black should try} 49... Rxf2 $19 50. Rgxf2 Nh4) 50. Qxd5 {[%emt 0:00:37]} ({Better is} 50. Qc8 $11 Qe6 51. Qxe6 fxe6 52. Ra7+ Kh6 53. Ra6) 50... Nc3 {[%emt 0:00:11] Pair of Knights!} ({Black should play} 50... Nxf2 $15 51. Rgxf2 Nxe3 52. Nxe3 Rxe3 53. Qxc4 Qd7) 51. Qxc4 $11 {[%emt 0:00:11] Chess con chili.} Nxa2 {[%emt 0:00:02]} 52. Qxa2 {[%emt 0:00:07]} Rh8 {[%emt 0:03:28]} 53. Qe2 {[%emt 0:16:20]} Rfh3 {[%emt 0:00:29]} 54. e4 {[%emt 0:01:24]} Nh6 {[%emt 0:01:14]} 55. Bg3 {[%emt 0:01:37]} Rd8 {[%emt 0:01:26]} 56. Rf2 {[%emt 0:04:00]} Rd4 {[%emt 0:00:25]} 57. f5 $36 {[%emt 0:05:18][%mdl 2048] Strongly threatening f6+. Black is under pressure.} Qg5 {[%emt 0:00:04][%mdl 8192] [#]} (57... Kh7 $11) 58. e6 $1 $18 {[%emt 0:00:33]} fxe6 {[%emt 0:02:00]} (58... gxf5 $2 59. Rg2 Rxg3 60. Rxg3 $18) (58... Rxg3+ 59. hxg3 Kg8) 59. Qb2 {[%emt 0:01:09]} e5 {[%emt 0:01:23]} 60. f6+ {[%emt 0:00:30]} Kh8 {[%emt 0:01:21]} 61. Qb8+ {[%emt 0:00:29]} Ng8 {[%emt 0:00:14]} 62. f7 {[%emt 0:00:13] White used his chance.  Weighted Error Value: White=0.21 (precise) /Black=0.31} (62. Kh1 $142 Rxg3 63. hxg3) 1-0